bitfinex-derivatives/quotes_ETHF0:USTF0_20250103
["timestamp","ask_amount","ask_price","bid_price","bid_amount"]
[1735864292287,3.39642936,3466.7,3466.6,0.52343934]
[1735864292521,3.39642936,3466.7,3466.6,0.52343093]
[1735864293893,3.2078,3466.8,3466.7,0.28873]
[1735864294196,3.2078,3466.8,3466.7,0.37899499]
[1735864294388,3.2078,3466.8,3466.7,0.52341277]
[1735864295885,3.2078,3466.8,3466.7,0.28873]
[1735864296287,3.6301,3466.8,3466.7,0.28873]
[1735864296789,3.2078,3466.8,3466.7,0.28873]
[1735864297188,3.39642936,3467.2,3467.1,0.28869]
[1735864297393,3.39642936,3467.2,3467.1,0.37894486]
[1735864297586,3.39642936,3467.2,3467.1,1.54594486]
[1735864298495,3.2078,3467.3,3467.1,1.25725486]
[1735864298690,3.2078,3467.3,3467.2,0.37894486]
[1735864299488,3.2078,3467.7,3467.2,2.36702442]
[1735864299720,3.2078,3467.7,3467.6,0.28865]
[1735864299992,0.4611,3468.0,3467.9,0.28863]
[1735864300897,0.74972,3468.0,3467.8,0.28864]
[1735864301297,0.4611,3468.0,3467.4,0.4223]
[1735864301503,0.4611,3468.0,3467.9,0.28863]
[1735864301801,0.4611,3468.0,3467.4,0.4223]
[1735864301995,0.28864,3467.7,3467.5,0.28866]
[1735864302297,3.49645,3467.7,3467.5,0.28866]
[1735864302504,0.4406,3467.6,3467.5,0.28866]
[1735864302687,0.72926,3467.6,3467.4,0.28867]
[1735864303147,0.4406,3467.6,3467.3,1.167]
[1735864303301,0.28867,3467.4,3467.2,0.28868]
[1735864303494,0.28869,3467.2,3467.0,0.2887]
[1735864303796,0.2887,3467.0,3466.6,0.28874]
[1735864303991,3.2078,3466.8,3466.7,0.28873]
[1735864304196,3.2078,3466.8,3466.3,1.167]
[1735864304197,0.4406,3467.0,3466.9,0.28871]
[1735864304694,0.4553,3467.3,3466.7,2.27677853]
[1735864304899,0.4553,3467.3,3467.2,0.28869]
[1735864308289,0.4553,3467.3,3466.4,2.70497853]
[1735864308693,0.28871,3466.9,3466.7,0.28872]
[1735864308895,0.8782,3466.8,3466.7,0.28872]
[1735864309196,0.8782,3466.8,3466.3,3.2078]
[1735864309392,4.37472,3466.8,3466.3,3.2078]
[1735864309592,4.37472,3466.8,3466.4,1.167]
[1735864309796,4.37472,3466.8,3466.6,0.28873]
[1735864309995,4.086,3466.8,3465.9,0.4376]
[1735864310215,4.086,3466.8,3466.0,1.167]
[1735864310700,0.28876,3466.3,3466.2,0.28877]
[1735864310895,0.28875,3466.4,3466.3,0.28876]
[1735864311095,0.28876,3466.3,3466.2,0.28877]
[1735864311293,0.28879,3466.0,3465.9,0.28879]
[1735864311493,3.49659,3466.0,3465.8,0.2888]
[1735864311697,1.1889,3465.9,3465.7,1.45581]
[1735864311899,1.1889,3465.9,3465.8,0.2888]
[1735864312334,0.2888,3465.8,3465.7,0.28881]
[1735864312499,0.28881,3465.7,3465.4,1.167]
[1735864312804,0.28882,3465.6,3465.4,0.28883]
[1735864313500,3.2078,3465.7,3464.9,1.47195633]
[1735864313707,0.28882,3465.6,3465.2,0.28884]
[1735864313901,0.28883,3465.5,3465.3,0.28884]
[1735864314103,3.49664,3465.4,3465.3,0.28884]
[1735864314403,3.2078,3465.4,3465.2,0.28885]
[1735864314605,0.465,3465.3,3465.2,0.28885]
[1735864315706,0.465,3465.3,3464.9,0.30495633]
[1735864315906,0.75385,3465.3,3465.1,0.28885]
[1735864316308,0.465,3465.3,3464.9,1.167]
[1735864316602,0.4535,3465.2,3464.9,1.167]
[1735864316798,0.28887,3465.0,3464.9,1.167]
[1735864317301,0.28889,3464.8,3464.6,0.2889]
[1735864317499,0.4535,3465.2,3464.2,2.27677853]
[1735864317500,3.2078,3464.7,3464.2,2.27677853]
[1735864317697,0.7185,3464.7,3464.5,0.28891]
[1735864317994,3.2078,3465.2,3464.3,1.167]
[1735864318199,0.8831,3465.1,3464.3,1.167]
[1735864318399,0.28888,3465.0,3464.8,0.28888]
[1735864319138,0.8831,3465.1,3465.0,0.28887]
[1735864319698,0.4296,3465.1,3465.0,0.28887]
[1735864320608,3.2078,3465.2,3464.8,2.27677853]
[1735864320811,3.2078,3465.2,3465.1,0.28886]
[1735864321635,3.2078,3465.2,3465.1,2.56563853]
[1735864322006,3.2078,3465.2,3465.1,2.65593952]
[1735864323010,3.2078,3465.9,3465.8,0.2888]
[1735864323410,3.2078,3465.9,3465.6,1.178]
[1735864323411,0.4623,3466.1,3465.6,1.178]
[1735864323611,0.4623,3466.1,3466.0,0.28879]
[1735864324409,0.4623,3466.1,3465.6,1.178]
[1735864324616,0.75108,3466.1,3465.6,1.178]
[1735864324804,0.9071,3466.1,3465.6,1.178]
[1735864325009,1.19588,3466.1,3465.8,0.2888]
[1735864325405,3.2078,3465.9,3465.3,1.178]
[1735864325608,0.28881,3465.8,3465.6,0.28882]
[1735864325813,3.2078,3465.9,3465.6,0.28882]
[1735864326010,3.2078,3465.9,3465.3,1.178]
[1735864326011,3.2078,3465.9,3465.7,0.28881]
[1735864326207,0.9071,3466.1,3465.4,2.27677853]
[1735864326520,0.9071,3466.1,3465.9,0.28879]
[1735864326810,0.9071,3466.1,3465.8,0.2888]
[1735864326811,1.19588,3466.1,3465.8,0.2888]
[1735864327428,1.19588,3466.1,3465.9,0.28879]
[1735864327627,0.9071,3466.1,3465.4,2.27677853]
[1735864327827,0.9071,3466.1,3465.3,1.6414]
[1735864327828,0.28879,3466.0,3465.8,0.2888]
[1735864328234,0.9071,3466.1,3465.3,1.178]
[1735864328424,0.9071,3466.1,3466.0,0.28879]
[1735864330738,1.19588,3466.1,3466.0,0.28879]
[1735864330926,1.19588,3466.1,3465.5,0.28883]
[1735864331128,1.19588,3466.1,3465.9,0.28879]
[1735864331827,1.19588,3466.1,3466.0,0.28879]
[1735864331828,0.9071,3466.1,3466.0,0.28879]
[1735864334146,3.2078,3466.3,3466.0,1.177]
[1735864334333,3.2078,3466.3,3466.2,0.28877]
[1735864334629,3.2078,3466.3,3466.2,0.5234837]
[1735864335042,0.8751,3466.8,3466.7,0.28873]
[1735864335043,3.2078,3466.8,3466.7,0.28873]
[1735864335243,3.39642936,3466.9,3466.8,0.28872]
[1735864335541,3.39642936,3466.9,3466.8,0.3789796]
[1735864335738,3.39642936,3466.9,3466.8,0.28872]
[1735864335933,3.39642936,3466.9,3466.8,0.37897768]
[1735864336243,0.73369,3467.2,3467.0,0.2887]
[1735864336937,0.445,3467.2,3467.1,0.28869]
[1735864337140,3.2078,3467.3,3467.2,0.28869]
[1735864337338,3.2078,3467.3,3467.2,0.37893844]
[1735864337640,3.2078,3467.3,3467.2,0.37893862]
[1735864338536,3.2078,3467.3,3467.2,0.28869]
[1735864344753,3.2078,3467.3,3467.1,1.177]
[1735864344950,3.49648,3467.3,3467.2,0.28869]
[1735864345344,3.2078,3467.3,3467.2,0.28869]
[1735864345849,3.2078,3467.3,3467.0,1.4657]
[1735864346045,0.2887,3467.1,3467.0,0.2887]
[1735864346250,0.2887,3467.0,3466.8,1.177]
[1735864346546,0.2887,3467.0,3466.7,0.28872]
[1735864346547,0.28872,3466.8,3466.7,0.28872]
[1735864346746,0.28873,3466.8,3466.6,0.28873]
[1735864346941,4.0891,3466.9,3466.5,0.28874]
[1735864347643,0.28875,3466.5,3466.3,0.28875]
[1735864347846,0.28875,3466.4,3466.2,0.28876]
[1735864348048,0.4586,3466.3,3466.2,0.28876]
[1735864348455,0.4586,3466.3,3466.0,1.177]
[1735864348644,0.4302,3466.2,3466.1,0.28877]
[1735864349947,0.4302,3466.2,3466.1,0.37905348]
[1735864350566,0.4302,3466.2,3466.1,0.28877]
[1735864350850,0.4302,3466.2,3466.1,0.37905245]
[1735864351050,2.70697853,3466.2,3464.7,9.98492227]
[1735864351345,3.2078,3465.7,3464.9,4.62633374]
[1735864351548,0.28884,3465.4,3465.1,0.28886]
[1735864351757,0.4574,3465.3,3465.1,0.28886]
[1735864351944,0.4574,3465.3,3465.2,0.28885]
[1735864354455,0.4326,3465.6,3465.2,2.27677853]
[1735864354753,3.2078,3465.7,3465.5,0.28882]
[1735864354955,3.49662,3465.7,3465.5,0.28882]
[1735864355345,3.2078,3465.7,3465.5,0.28882]
[1735864355545,3.2078,3465.7,3465.3,0.8814]
[1735864355745,3.49661,3465.7,3465.4,0.28884]
[1735864356351,0.28882,3465.6,3465.3,0.4334]
[1735864356551,0.28883,3465.5,3465.2,0.28885]
[1735864356752,0.28883,3465.5,3465.1,1.176]
[1735864356753,3.2078,3465.7,3465.1,1.176]
[1735864356953,0.28884,3465.4,3465.1,1.46486]
[1735864357654,3.2078,3465.7,3464.9,2.27677853]
[1735864357866,0.28888,3465.0,3464.8,1.46488]
[1735864358058,0.461,3464.9,3464.8,1.176]
[1735864358453,0.461,3464.9,3464.8,1.46489]
[1735864358953,0.461,3464.9,3464.5,0.4351]
[1735864359184,0.74988,3464.9,3464.7,3.49669]
[1735864359654,0.461,3464.9,3464.8,0.28889]
[1735864359854,0.74988,3464.9,3464.7,3.49669]
[1735864360055,0.461,3464.9,3464.8,0.28889]
[1735864360261,0.461,3464.9,3464.7,3.49669]
[1735864360459,0.74988,3464.9,3464.7,3.49669]
[1735864360763,0.74988,3464.9,3464.7,0.28889]
[1735864361853,0.74988,3464.9,3464.5,1.176]
[1735864361854,3.2078,3464.8,3463.8,3.2078]
[1735864362157,2.27677853,3464.3,3463.8,9.29475801]
[1735864362365,0.28896,3463.9,3463.8,4.48185801]
[1735864363249,5.48457853,3464.0,3463.3,1.176]
[1735864363462,3.2078,3463.6,3463.3,1.46501]
[1735864363654,0.7476,3463.5,3463.3,1.46501]
[1735864363960,0.8792,3463.5,3463.3,1.46501]
[1735864364161,0.8792,3463.5,3463.4,0.289]
[1735864364353,0.28901,3463.4,3463.1,0.28902]
[1735864364761,0.289,3463.4,3463.1,0.28902]
[1735864365362,0.8792,3463.5,3463.1,0.28902]
[1735864365559,1.1682,3463.5,3463.2,0.28902]
[1735864365756,0.289,3463.4,3463.2,0.28902]
[1735864365952,1.1682,3463.5,3463.2,0.28902]
[1735864366162,0.8792,3463.5,3463.2,0.28902]
[1735864366364,0.28901,3463.3,3463.0,0.28903]
[1735864366558,0.28901,3463.3,3462.9,1.176]
[1735864366559,0.8792,3463.5,3462.9,1.176]
[1735864366762,0.8792,3463.5,3463.1,0.28902]
[1735864366763,0.28901,3463.4,3463.1,0.28902]
[1735864366964,0.28903,3463.1,3462.9,0.28904]
[1735864367161,0.28903,3463.2,3462.9,1.46504]
[1735864367359,0.8792,3463.5,3462.9,1.46504]
[1735864367566,0.28902,3463.2,3462.9,1.46504]
[1735864367865,2.27677853,3463.1,3462.6,0.31114787]
[1735864368066,0.28905,3462.9,3462.6,0.60021787]
[1735864368274,2.27677853,3463.1,3462.6,0.60021787]
[1735864368588,2.27677853,3463.1,3462.4,3.2078]
[1735864368761,0.28909,3462.4,3462.1,1.46611]
[1735864369062,0.28912,3462.1,3461.6,4.3848]
[1735864369255,0.28912,3462.1,3461.8,0.28913]
[1735864369460,1.3245,3462.3,3461.6,3.2078]
[1735864369863,0.28912,3462.1,3461.7,0.28914]
[1735864370266,1.3245,3462.3,3461.4,5.65885801]
[1735864370267,1.3245,3462.3,3461.6,0.28915]
[1735864370568,3.2078,3462.0,3461.7,0.28914]
[1735864371663,3.2078,3462.0,3461.6,0.28915]
[1735864371664,3.49693,3462.0,3461.6,0.28915]
[1735864371908,0.28913,3461.9,3461.4,1.177]
[1735864372062,0.28913,3461.9,3461.5,0.28915]
[1735864372263,3.2078,3462.0,3461.2,0.433]
[1735864372464,0.28914,3461.8,3461.4,0.28917]
[1735864372972,3.49692,3462.0,3461.2,1.61]
[1735864373164,3.2078,3462.0,3461.4,0.28917]
[1735864373357,3.2078,3462.0,3461.3,2.27677853]
[1735864373561,3.2078,3462.0,3461.8,0.28913]
[1735864374009,3.49692,3462.0,3461.6,0.28915]
[1735864375474,3.49692,3462.0,3461.7,0.28914]
[1735864376765,3.2078,3462.0,3461.3,2.27677853]
[1735864376972,3.2078,3462.0,3461.8,0.28914]
[1735864377169,3.2078,3462.0,3461.3,2.27677853]
[1735864377170,3.2078,3462.0,3461.9,0.28913]
[1735864380170,0.28911,3462.2,3461.3,6.20751853]
[1735864380476,0.28911,3462.2,3461.7,0.28914]
[1735864380477,0.28911,3462.1,3461.7,0.28914]
[1735864380672,0.28914,3461.8,3461.6,0.28915]
[1735864380967,0.28914,3461.8,3461.4,0.28917]
[1735864381171,0.28914,3461.8,3461.3,3.2078]
[1735864381172,0.28914,3461.8,3461.5,0.28916]
[1735864381367,0.28914,3461.8,3461.6,0.28915]
[1735864381566,0.28914,3461.8,3461.5,0.28916]
[1735864381769,3.2078,3462.0,3461.5,0.28916]
[1735864381984,3.2078,3461.6,3461.2,0.28918]
[1735864382175,1.2991,3461.5,3460.9,3.2078]
[1735864382528,0.28917,3461.4,3461.1,0.28919]
[1735864382679,0.28918,3461.3,3461.0,0.2892]
[1735864382875,1.2991,3461.5,3461.2,0.28918]
[1735864383067,1.2991,3461.5,3461.3,0.28917]
[1735864383279,0.8786,3461.5,3461.4,0.28917]
[1735864383886,0.4391,3461.5,3461.4,0.28917]
[1735864385073,2.27677853,3462.8,3461.4,1.173]
[1735864385271,3.2078,3462.4,3461.8,2.27677853]
[1735864385480,0.28909,3462.3,3462.2,0.2891]
[1735864385677,3.2078,3462.4,3461.7,4.3808]
[1735864385872,3.49689,3462.4,3462.2,0.2891]
[1735864386071,3.2078,3462.4,3462.3,0.28909]
[1735864386276,3.49689,3462.4,3462.3,0.28909]
[1735864386476,3.2078,3462.4,3462.3,0.28909]
[1735864387080,3.49689,3462.4,3462.2,0.2891]
[1735864387279,3.2078,3462.4,3461.8,0.4392]
[1735864387480,3.2078,3462.4,3462.3,0.28909]
[1735864387895,3.49689,3462.4,3462.2,0.2891]
[1735864388075,3.49689,3462.4,3461.9,0.28913]
[1735864388278,3.49689,3462.4,3461.8,0.4392]
[1735864388279,3.2078,3462.4,3462.3,0.28909]
[1735864388879,3.49689,3462.4,3462.3,0.28909]
[1735864389080,3.2078,3462.4,3462.3,0.28909]
[1735864390676,3.2078,3462.4,3462.3,0.37947178]
[1735864391473,3.2078,3462.4,3462.3,0.37947374]
[1735864392486,3.2078,3462.4,3462.3,0.37947593]
[1735864393487,3.49689,3462.4,3462.3,0.09038593]
[1735864393789,3.49689,3462.4,3461.7,1.173]
[1735864393790,0.28911,3462.2,3462.0,0.28912]
[1735864393995,0.4322,3462.1,3462.0,0.28912]
[1735864394289,0.4322,3462.1,3462.0,0.37951121]
[1735864394478,0.72131,3462.1,3462.0,0.09039121]
[1735864395361,0.4322,3462.1,3462.0,0.37951121]
[1735864396593,3.2078,3462.4,3462.0,0.09039121]
[1735864396893,3.2078,3462.4,3462.3,0.28909]
[1735864397193,3.2078,3462.4,3462.3,0.37948121]
[1735864399695,3.2078,3462.4,3462.3,0.28909]
[1735864399898,3.2078,3462.4,3462.3,0.37947055]
[1735864402499,3.2078,3462.4,3462.3,0.37946345]
[1735864403703,0.4428,3463.1,3462.3,0.81311345]
[1735864403704,3.2078,3463.0,3462.3,0.81311345]
[1735864403902,3.6658,3463.0,3462.9,0.28904]
[1735864404098,3.2078,3463.4,3463.3,0.28901]
[1735864404298,3.2078,3463.4,3463.3,0.37938345]
[1735864404498,3.2078,3463.9,3463.3,0.09037345]
[1735864404811,3.2078,3463.9,3463.2,1.173]
[1735864404812,3.2078,3463.9,3463.4,0.09037345]
[1735864404997,3.2078,3463.9,3463.8,0.28897]
[1735864405303,0.8867,3464.0,3463.9,0.28896]
[1735864405603,0.8867,3464.0,3463.9,0.37930114]
[1735864406599,1.17565,3464.0,3463.9,0.28896]
[1735864406805,0.8867,3464.0,3463.5,3.2078]
[1735864406998,3.2078,3463.9,3463.4,1.462]
[1735864407199,3.2078,3463.9,3463.4,0.289]
[1735864407594,0.28899,3463.5,3463.4,0.289]
[1735864407808,0.28901,3463.3,3463.1,4.77087801]
[1735864408014,0.4368,3463.2,3463.1,4.48185801]
[1735864408305,0.4368,3463.2,3463.1,0.28903]
[1735864413609,0.4461,3463.4,3463.3,0.28901]
[1735864416541,0.7351,3463.4,3463.3,0.28901]
[1735864416698,0.7351,3463.4,3463.2,0.28902]
[1735864416906,0.28903,3463.1,3462.6,0.28907]
[1735864417108,0.459,3463.0,3462.8,1.168]
[1735864418019,0.28904,3462.9,3462.8,1.168]
[1735864418212,3.6668,3463.0,3462.4,0.4597]
[1735864418414,0.28909,3462.4,3462.3,0.28909]
[1735864418715,0.28909,3462.5,3462.3,0.28909]
[1735864419316,3.2078,3462.6,3462.0,1.168]
[1735864419618,3.49688,3462.6,3462.4,0.28908]
[1735864420007,3.2078,3462.6,3462.0,1.168]
[1735864420214,3.2078,3462.6,3462.3,2.27677853]
[1735864420417,0.459,3463.0,3462.3,2.27677853]
[1735864420605,0.459,3463.0,3462.4,1.6025]
[1735864420802,0.28906,3462.7,3462.5,0.28908]
[1735864421004,3.2078,3462.9,3462.6,0.28907]
[1735864421210,0.28906,3462.7,3462.6,0.28907]
[1735864421412,0.28906,3462.7,3462.5,0.28908]
[1735864421842,0.443,3462.6,3462.5,0.28908]
[1735864422710,0.73208,3462.6,3462.4,1.168]
[1735864423011,0.73208,3462.6,3462.5,0.28908]
[1735864423012,0.8741,3462.6,3462.5,0.28908]
[1735864423619,1.16318,3462.6,3462.4,1.168]
[1735864424013,1.16318,3462.6,3462.4,1.45708]
[1735864424508,1.16318,3462.6,3462.5,0.28908]
[1735864425025,0.8741,3462.6,3462.4,1.168]
[1735864425215,3.49688,3462.5,3462.4,1.168]
[1735864426710,3.2078,3462.5,3462.4,1.45709]
[1735864429610,3.2078,3462.5,3462.4,2.35489]
[1735864429812,0.459,3463.0,3462.9,0.28904]
[1735864431515,3.2078,3463.1,3463.0,0.28904]
[1735864432117,3.2078,3463.1,3463.0,0.74624]
[1735864432610,3.49683,3463.1,3463.0,0.28904]
[1735864432836,0.28904,3463.0,3462.8,0.28904]
[1735864433006,0.4569,3462.9,3462.8,0.28904]
[1735864436922,0.74594,3462.9,3462.8,0.28904]
[1735864437124,0.4569,3462.9,3462.8,0.28904]
[1735864437322,0.74594,3462.9,3462.8,0.28904]
[1735864440221,0.4569,3462.9,3462.8,0.28904]
[1735864440827,0.4569,3462.9,3462.4,1.168]
[1735864441026,0.74595,3462.9,3462.8,0.28905]
[1735864442040,0.28907,3462.7,3462.6,0.28907]
[1735864442227,0.28905,3462.8,3462.3,2.32894]
[1735864442836,0.28905,3462.8,3462.7,0.28906]
[1735864447441,0.74595,3462.9,3462.8,0.28905]
[1735864448333,0.28906,3462.8,3462.7,0.28905]
[1735864450547,0.4569,3462.9,3462.4,1.162]
[1735864450832,0.74595,3462.9,3462.8,0.28905]
[1735864451033,0.4569,3462.9,3462.3,0.4442]
[1735864451226,0.4569,3462.9,3462.7,0.28905]
[1735864451227,0.28906,3462.8,3462.7,0.28905]
[1735864454132,0.28906,3462.8,3462.7,0.28906]
[1735864454336,0.74595,3462.9,3462.8,0.28905]
[1735864454631,0.28906,3462.8,3462.7,0.28906]
[1735864455237,0.4569,3462.9,3462.4,5.64385801]
[1735864455428,0.28908,3462.5,3462.4,4.48185801]
[1735864456878,0.2891,3462.2,3462.1,4.77096801]
[1735864457036,0.2891,3462.2,3462.1,4.48185801]
[1735864457446,3.4969,3462.2,3462.1,4.48185801]
[1735864458036,4.851,3462.2,3462.1,4.48185801]
[1735864458237,0.28911,3462.1,3462.0,4.48185801]
[1735864459231,0.28911,3462.1,3462.0,3.78185801]
[1735864459436,0.28911,3462.1,3461.5,3.2078]
[1735864459437,0.28915,3461.6,3461.5,3.2078]
[1735864460237,0.28918,3461.3,3461.2,6.77712227]
[1735864460828,0.28918,3461.3,3461.0,7.23542227]
[1735864461034,0.28918,3461.3,3461.0,7.52462227]
[1735864461433,0.28918,3461.3,3461.0,7.23542227]
[1735864461833,0.28918,3461.3,3461.0,7.52462227]
[1735864462044,0.28919,3461.2,3461.0,7.52462227]
[1735864462238,0.28919,3461.2,3461.0,0.7475]
[1735864462531,0.9064,3461.4,3461.0,0.7475]
[1735864462736,0.2892,3461.1,3461.0,0.7475]
[1735864463033,0.2892,3461.1,3461.0,0.4583]
[1735864464640,0.2892,3461.0,3460.9,3.2078]
[1735864464841,0.28922,3460.8,3460.7,7.24222227]
[1735864465135,3.2078,3461.2,3460.5,0.28924]
[1735864465333,0.28925,3460.4,3460.3,7.20502227]
[1735864465596,0.28925,3460.4,3460.3,6.77712227]
[1735864466836,0.28925,3460.4,3460.2,0.75437]
[1735864467339,1.2978,3460.7,3460.2,0.4651]
[1735864467340,0.28926,3460.3,3460.2,0.4651]
[1735864468330,0.28926,3460.3,3460.0,3.2078]
[1735864468539,0.28927,3460.3,3460.1,0.28928]
[1735864468837,3.57457853,3460.7,3460.0,3.2078]
[1735864469037,1.2978,3460.7,3460.0,3.2078]
[1735864469342,0.28928,3460.2,3460.0,3.2078]
[1735864469530,3.57457853,3460.7,3460.0,3.2078]
[1735864469776,0.28928,3460.1,3460.0,3.2078]
[1735864470543,3.2078,3460.2,3459.6,0.29624166]
[1735864470847,0.28931,3459.8,3459.6,0.28932]
[1735864471239,3.2078,3459.7,3458.5,16.98669303]
[1735864471441,0.28933,3459.6,3459.3,0.28934]
[1735864471784,0.28933,3459.5,3459.3,0.28934]
[1735864471941,0.28932,3459.6,3459.4,0.28934]
[1735864472337,0.28933,3459.5,3459.3,0.28935]
[1735864473146,0.28933,3459.5,3459.3,0.28934]
[1735864473440,0.28933,3459.5,3459.1,0.4303]
[1735864473441,3.49712,3459.7,3459.5,0.28932]
[1735864473640,3.2078,3459.7,3459.2,0.28935]
[1735864473834,3.2078,3459.7,3459.5,0.28932]
[1735864474446,0.28932,3459.6,3459.2,0.28935]
[1735864474645,0.28932,3459.6,3459.4,0.28933]
[1735864474842,3.49712,3459.7,3459.5,0.28933]
[1735864475345,0.28932,3459.6,3459.4,0.28934]
[1735864475940,3.49712,3459.7,3459.5,0.28933]
[1735864476437,0.4244,3460.0,3459.3,2.27677853]
[1735864476633,0.4244,3460.0,3459.9,0.2893]
[1735864477065,3.2078,3460.1,3459.4,0.8958]
[1735864477244,0.4666,3460.5,3460.4,0.28925]
[1735864477846,0.75585,3460.5,3460.3,0.28926]
[1735864478447,0.28924,3460.6,3460.4,0.28925]
[1735864478746,3.2078,3460.7,3460.0,0.916]
[1735864479066,0.28925,3460.5,3460.3,0.28926]
[1735864479346,3.2078,3460.7,3460.0,0.916]
[1735864479347,0.28924,3460.6,3460.4,0.28925]
[1735864479545,0.28925,3460.5,3460.0,0.916]
[1735864479751,0.28925,3460.5,3460.3,0.28926]
[1735864480145,0.28924,3460.6,3460.4,0.28925]
[1735864481458,3.2078,3460.7,3460.4,0.28925]
[1735864481645,0.28924,3460.6,3460.4,0.28925]
[1735864482349,3.2078,3460.7,3460.6,0.28924]
[1735864483243,3.49703,3460.7,3460.5,1.44224]
[1735864483444,3.49703,3460.7,3460.6,0.28924]
[1735864484744,3.2078,3460.7,3460.6,0.28924]
[1735864485775,3.2078,3460.7,3460.5,1.153]
[1735864486053,3.49703,3460.7,3460.6,0.28924]
[1735864487149,3.2078,3460.7,3460.5,1.153]
[1735864487361,0.28924,3460.6,3460.5,1.153]
[1735864487749,3.2078,3460.7,3460.2,1.153]
[1735864488050,3.2078,3460.7,3460.1,0.28927]
[1735864488051,0.28927,3460.3,3460.1,0.28928]
[1735864488553,0.28927,3460.3,3460.0,0.916]
[1735864488853,0.28927,3460.3,3460.2,0.28927]
[1735864489656,0.28927,3460.2,3460.1,0.28928]
[1735864491455,3.2078,3460.3,3459.8,1.15558221]
[1735864491645,0.28929,3460.0,3459.9,0.2893]
[1735864492568,0.28928,3460.1,3460.0,0.28929]
[1735864493056,3.2078,3460.3,3459.8,0.00258221]
[1735864493298,0.2893,3459.9,3459.8,0.00258221]
[1735864494357,3.4971,3459.9,3459.8,0.00258221]
[1735864494653,5.77387853,3459.9,3459.8,0.00258221]
[1735864499618,3.4971,3459.9,3459.8,0.00258221]
[1735864509105,5.77387853,3459.9,3459.8,0.00258221]
[1735864512057,6.22377853,3459.9,3459.8,0.00258221]
[1735864514368,9.63089745,3459.9,3459.8,0.00258221]
[1735864516266,6.90421892,3459.9,3459.8,0.00258221]
[1735864516670,3.4971,3459.9,3459.8,0.00258221]
[1735864517058,3.2078,3459.9,3459.8,0.29188221]
[1735864517265,3.2078,3459.9,3459.8,0.00258221]
[1735864517461,3.4971,3459.9,3459.8,0.00258221]
[1735864518563,3.4971,3459.9,3459.8,0.29188221]
[1735864519067,3.4971,3459.9,3459.8,0.00258221]
[1735864520674,3.4971,3459.9,3459.8,0.29188221]
[1735864520866,3.4971,3459.9,3459.8,0.00258221]
[1735864521267,3.4971,3459.9,3459.8,0.29188221]
[1735864523073,3.40711892,3460.4,3459.8,0.00258221]
[1735864523371,3.40711892,3460.4,3460.1,3.2078]
[1735864523574,0.28926,3460.3,3460.2,1.18517]
[1735864523989,3.40711892,3460.4,3460.3,0.28926]
[1735864524172,0.28926,3460.3,3460.2,1.18517]
[1735864524364,3.40711892,3460.4,3460.3,0.28926]
[1735864524565,3.2078,3460.7,3460.2,7.0449]
[1735864524773,3.40711892,3460.9,3460.8,0.28922]
[1735864525973,8.89169745,3461.6,3460.7,3.2078]
[1735864526171,0.28919,3461.3,3461.1,0.28919]
[1735864526472,0.28919,3461.3,3461.2,0.4628]
[1735864527375,3.2078,3461.5,3461.2,0.4628]
[1735864527573,0.28917,3461.4,3461.2,0.75198]
[1735864527872,3.49697,3461.5,3461.3,0.28918]
[1735864528074,0.28917,3461.4,3461.2,0.75198]
[1735864529081,3.2078,3461.5,3461.2,0.4628]
[1735864529369,0.28918,3461.3,3461.2,0.4628]
[1735864532667,2.27677853,3461.3,3460.8,0.4385]
[1735864532877,2.27677853,3461.3,3460.7,3.2078]
[1735864533269,0.28922,3460.8,3460.7,3.2078]
[1735864534173,0.8658,3460.9,3460.6,0.4584]
[1735864534471,0.28923,3460.7,3460.6,0.4584]
[1735864535268,4.0736,3460.9,3460.3,3.6373]
[1735864535470,0.28925,3460.4,3460.3,4.0919]
[1735864535676,0.28925,3460.4,3460.3,3.6624]
[1735864537274,2.27677853,3460.7,3460.3,3.6624]
[1735864537475,0.28925,3460.5,3460.3,3.95166]
[1735864537668,4.0736,3460.9,3460.7,0.28923]
[1735864537669,0.28921,3460.9,3460.7,0.28923]
[1735864537868,0.28921,3460.9,3460.8,0.4228]
[1735864538066,0.28921,3461.0,3460.8,0.71202]
[1735864538276,3.40711892,3461.2,3461.0,0.2892]
[1735864538471,3.40711892,3461.2,3461.1,0.7292]
[1735864539276,3.2078,3461.3,3461.1,0.44]
[1735864539475,3.2078,3461.3,3461.2,0.28919]
[1735864539670,0.28916,3461.6,3461.4,0.28917]
[1735864539871,0.28916,3461.6,3461.5,0.4221]
[1735864542379,0.28915,3461.7,3461.5,0.71126]
[1735864542777,0.28915,3461.6,3461.5,0.4221]
[1735864545675,0.28917,3461.5,3461.3,0.28917]
[1735864546183,0.28917,3461.5,3461.4,0.28917]
[1735864546882,0.28917,3461.4,3461.3,0.28917]
[1735864547773,3.93066,3461.8,3461.1,0.44]
[1735864547975,0.28919,3461.2,3461.1,0.72919]
[1735864548786,0.28919,3461.2,3461.1,0.44]
[1735864549520,0.28919,3461.2,3461.1,0.7292]
[1735864550382,0.28919,3461.2,3461.1,0.44]
[1735864550576,0.28919,3461.2,3460.8,4.824]
[1735864550577,0.4348,3461.3,3460.8,4.3588]
[1735864550782,0.7434,3461.1,3460.9,0.2892]
[1735864551779,0.7434,3461.1,3460.8,4.3588]
[1735864551984,0.7434,3461.1,3461.0,0.2892]
[1735864552283,0.74189,3461.2,3460.8,4.3588]
[1735864552472,0.28919,3461.2,3461.1,0.2892]
[1735864553477,0.4348,3461.3,3460.8,4.3588]